bitfinex/quotes_ETHUSD_20220202
["timestamp","ask_amount","ask_price","bid_price","bid_amount"]
[1643767831603,1.5351179,2754.6,2753.9,0.1814]
[1643767831802,1.5351179,2754.6,2753.7,0.75596189]
[1643767831803,0.405434,2753.8,2753.7,0.75596189]
[1643767833548,1.9408471,2753.8,2753.7,0.75596189]
[1643767833846,1.5354131,2753.8,2753.7,0.75596189]
[1643767834250,0.1814,2754.4,2753.7,0.75596189]
[1643767834251,1.5354131,2754.3,2753.7,0.75596189]
[1643767834450,1.71672175,2754.2,2753.7,0.75596189]
[1643767834651,1.53532175,2754.1,2753.7,0.75596189]
[1643767834851,1.53532175,2754.0,2753.7,1.05596189]
[1643767835051,1.53532175,2753.9,2753.7,0.75596189]
[1643767835258,1.53532175,2753.8,2753.5,6.5213]
[1643767835451,1.53532175,2753.7,2753.5,7.1213]
[1643767835651,0.68228376,2754.4,2753.5,7.1213]
[1643767835652,0.1814,2754.3,2753.5,7.1213]
[1643767835853,0.44672243,2753.7,2753.5,6.8213]
[1643767836698,0.1814,2754.3,2753.6,0.84327619]
[1643767836900,1.53535609,2754.2,2753.6,0.84327619]
[1643767837907,0.42847072,2754.0,2753.6,0.84327619]
[1643767838102,0.1814,2754.3,2753.6,0.84327619]
[1643767838103,1.53535609,2753.9,2753.6,0.84327619]
[1643767838302,0.86368376,2754.5,2753.7,0.9077232]
[1643767838503,0.86368376,2754.5,2753.8,0.90771]
[1643767838504,1.53525899,2754.4,2753.8,0.90771]
[1643767839205,0.3777276,2754.2,2753.8,0.90771]
[1643767839405,1.53525899,2754.1,2753.8,0.90771]
[1643767839608,0.68228376,2754.7,2754.0,1.8152265]
[1643767840045,2.2174554,2754.7,2754.0,1.8152265]
[1643767840452,1.53517164,2754.6,2754.2,0.89239539]
[1643767840646,0.3253762,2754.4,2754.2,0.89239539]
[1643767840846,1.53517164,2754.3,2754.2,0.89239539]
[1643767841245,1.53517164,2754.5,2754.2,0.89239539]
[1643767841645,1.53517164,2754.4,2754.2,0.89239539]
[1643767841846,1.53517164,2754.3,2754.2,0.89239539]
[1643767842248,0.1814,2754.6,2754.2,0.89239539]
[1643767842249,1.53517164,2754.5,2754.2,0.89239539]
[1643767842449,1.53517164,2754.4,2754.2,0.89239539]
[1643767842747,1.53517164,2754.3,2754.2,0.89239539]
[1643767843151,1.53517164,2754.5,2754.2,0.89239539]
[1643767843506,1.53517164,2754.4,2754.2,0.89239539]
[1643767843707,1.53517164,2754.3,2754.2,0.89239539]
[1643767843908,1.53517164,2754.5,2754.2,0.89239539]
[1643767844310,1.53517164,2754.5,2754.3,0.84208037]
[1643767844711,1.53517164,2754.4,2754.3,0.84208037]
[1643767844912,1.53517164,2754.6,2754.3,0.84208037]
[1643767845116,1.53517164,2754.6,2754.4,2.20138699]
[1643767845314,3.7692,2755.3,2754.5,0.524]
[1643767845315,0.86368376,2755.2,2754.5,0.524]
[1643767845518,3.7692,2755.3,2754.6,2.30199302]
[1643767845519,1.53490036,2755.1,2754.6,2.30199302]
[1643767845712,1.53490036,2755.0,2754.7,0.95682304]
[1643767845912,1.53490036,2754.9,2754.7,0.95682304]
[1643767846112,1.53490036,2754.8,2754.7,0.824]
[1643767846314,1.53490036,2755.2,2754.7,2.638771]
[1643767847547,0.33946605,2755.3,2754.7,0.824]
[1643767847548,2.73805017,2755.3,2754.7,0.824]
[1643767847747,2.55665017,2755.3,2754.7,0.824]
[1643767847947,1.53490036,2755.2,2754.7,0.824]
[1643767848151,1.53490036,2755.2,2754.7,1.73141]
[1643767848348,2.21718412,2755.2,2754.7,1.73141]
[1643767848949,2.21718412,2755.2,2754.8,0.67172319]
[1643767849150,2.21718412,2755.2,2754.8,1.19572319]
[1643767850157,2.21718412,2755.2,2754.8,0.524]
[1643767850362,0.68228376,2755.1,2754.7,0.3]
[1643767850558,0.68228376,2755.1,2754.5,4.1535794]
[1643767850764,1.87436641,2755.3,2754.5,7.6535794]
[1643767850765,2.21718412,2755.0,2754.5,7.6535794]
[1643767851007,1.24747447,2755.3,2754.4,6.0505]
[1643767851008,2.21718412,2754.9,2754.4,6.0505]
[1643767851195,1.53490036,2754.8,2754.4,6.0505]
[1643767851395,0.68228376,2754.9,2754.4,6.0505]
[1643767851396,1.96294098,2754.7,2754.4,6.0505]
[1643767851594,1.53490036,2754.6,2754.4,6.0505]
[1643767851794,1.53490036,2754.6,2754.4,6.3505]
[1643767852400,1.53490036,2754.6,2754.3,0.1814]
[1643767852599,1.53490036,2754.6,2754.3,0.4814]
[1643767853201,1.53490036,2754.6,2754.3,0.1814]
[1643767853602,1.53490036,2754.6,2754.5,0.7670807]
[1643767854002,2.21718412,2755.1,2754.5,1.0670807]
[1643767854203,0.1814,2755.0,2754.5,1.0670807]
[1643767854402,1.53490036,2754.9,2754.5,1.0670807]
[1643767855450,1.53490036,2754.9,2754.5,0.7670807]
[1643767855653,1.53490036,2754.9,2754.5,1.0670807]
[1643767855851,1.53490036,2754.8,2754.5,1.0670807]
[1643767856155,0.68228376,2755.1,2754.5,1.0670807]
[1643767856156,1.53490036,2754.7,2754.5,1.0670807]
[1643767856352,1.53490036,2754.6,2754.5,1.0670807]
[1643767856551,1.53490036,2754.8,2754.5,1.0670807]
[1643767856758,1.53490036,2754.7,2754.5,1.0670807]
[1643767856952,1.53490036,2754.6,2754.5,1.0670807]
[1643767857351,0.68228376,2755.2,2754.5,1.0670807]
[1643767857352,2.21718412,2755.2,2754.5,1.0670807]
[1643767857555,2.21718412,2755.2,2754.6,2.12112299]
[1643767857556,1.53490036,2755.1,2754.6,2.12112299]
[1643767857752,1.53490036,2755.1,2754.7,0.70551181]
[1643767857951,1.53490036,2755.0,2754.7,0.70551181]
[1643767858152,1.53490036,2754.9,2754.7,0.70551181]
[1643767858359,1.53490036,2754.8,2754.7,0.3]
[1643767858587,1.53490036,2755.2,2754.7,1.2074376]
[1643767858794,1.53490036,2755.1,2754.7,1.2074376]
[1643767858989,1.53490036,2755.0,2754.7,1.2074376]
[1643767859187,1.22532734,2755.3,2754.7,1.2074376]
[1643767859188,1.53490036,2754.9,2754.7,1.2074376]
[1643767859388,1.22532734,2755.3,2754.7,1.2074376]
[1643767859389,1.53490036,2754.8,2754.7,1.2074376]
[1643767859589,1.53490036,2755.2,2754.7,1.2074376]
[1643767859993,1.53490036,2755.2,2754.7,3.29116893]
[1643767860191,1.53490036,2755.2,2754.7,4.19854893]
[1643767860394,1.78727256,2755.4,2754.7,4.19854893]
[1643767860395,1.53490036,2755.1,2754.8,0.524]
[1643767860594,1.53490036,2755.0,2754.9,2.10602379]
[1643767860805,1.53490036,2755.0,2754.9,2.63002379]
[1643767860999,1.1049888,2755.4,2754.9,3.93002379]
[1643767861000,1.53490036,2755.3,2754.9,3.93002379]
[1643767861193,1.53490036,2755.2,2754.9,3.93002379]
[1643767861399,1.53490036,2755.1,2754.9,3.93002379]
[1643767861595,1.1049888,2755.4,2755.0,0.70880718]
[1643767861797,1.53472539,2755.3,2755.1,0.524]
[1643767862264,1.53472539,2755.3,2755.1,0.824]
[1643767864256,1.53472539,2755.3,2755.1,0.3]
[1643767864757,1.53472539,2755.3,2755.0,2.61758253]
[1643767864955,1.53472539,2755.3,2755.1,0.524]
[1643767866205,1.53472539,2755.3,2754.8,0.1814]
[1643767866408,1.53472539,2755.3,2754.9,0.3]
[1643767866612,1.53472539,2755.3,2754.8,0.1814]
[1643767868011,1.53472539,2755.3,2754.8,1.9961318]
[1643767868215,1.53472539,2755.3,2754.9,2.524]
[1643767868410,1.53472539,2755.3,2754.9,4.1528971]
[1643767868809,1.53472539,2755.3,2755.0,0.3]
[1643767869015,1.53472539,2755.3,2755.1,1.8144772]
[1643767869215,1.53472539,2755.3,2755.2,0.824]
[1643767869746,1.53472539,2755.3,2755.2,0.524]
[1643767871154,1.1049888,2755.4,2755.2,0.524]
[1643767871354,1.0549888,2755.4,2755.2,1.731242]
[1643767871551,1.0549888,2755.4,2755.2,1.431242]
[1643767871756,1.0549888,2755.4,2755.2,1.731242]
[1643767871951,1.0549888,2755.4,2755.2,1.431242]
[1643767872951,1.0549888,2755.4,2755.2,1.731242]
[1643767873351,1.0549888,2755.4,2755.2,4.452682]
[1643767874197,1.0549888,2755.4,2755.3,0.40847793]
[1643767874400,1.0549888,2755.4,2755.3,0.93247793]
[1643767875399,1.0549888,2755.4,2755.3,0.524]
[1643767876598,1.0549888,2755.4,2755.3,0.824]
[1643767876798,1.0549888,2755.4,2755.3,0.524]
[1643767877259,1.0549888,2755.4,2755.3,0.824]
[1643767878461,1.0549888,2755.4,2755.3,1.73114]
[1643767878659,1.0549888,2755.4,2755.3,3.80555673]
[1643767879567,1.0549888,2755.4,2755.3,1.73114]
[1643767879767,1.0549888,2755.4,2755.3,0.524]
[1643767880571,1.0549888,2755.4,2755.3,3.84373777]
[1643767880772,1.0549888,2755.4,2755.3,4.84373777]
[1643767881194,1.0549888,2755.4,2755.3,5.02555777]
[1643767884000,1.0549888,2755.4,2755.3,2.73114]
[1643767884201,1.0549888,2755.4,2755.3,1.73114]
[1643767884601,1.0549888,2755.4,2755.3,0.824]
[1643767885052,1.0549888,2755.4,2755.1,1.8141948]
[1643767885252,1.0549888,2755.4,2754.9,0.1814]
[1643767885448,1.0549888,2755.4,2754.7,6.4611]
[1643767885449,1.95496894,2755.3,2754.7,6.4611]
[1643767885651,1.0549888,2755.4,2754.7,6.4611]
[1643767885851,0.1814,2755.3,2754.7,6.4611]
[1643767886148,0.1814,2755.3,2754.7,7.3685012]
[1643767886350,0.33158947,2755.1,2754.7,8.17018291]
[1643767886752,0.33158947,2755.1,2754.7,7.3685012]
[1643767886949,0.33158947,2755.1,2754.7,6.4611]
[1643767887359,0.33158947,2755.1,2754.7,6.7611]
[1643767888520,0.33158947,2755.1,2754.7,7.6685018]
[1643767889626,0.33158947,2755.1,2754.7,6.7611]
[1643767890425,0.33158947,2755.1,2754.8,0.72130622]
[1643767891632,0.33158947,2755.1,2754.7,7.6685023]
[1643767891928,0.33158947,2755.1,2754.7,7.3685023]
[1643767892346,0.33158947,2755.1,2754.7,0.9074023]
[1643767892557,0.33158947,2755.1,2754.7,1.2074023]
[1643767893651,0.33158947,2755.1,2754.7,0.3]
[1643767894052,0.33158947,2755.1,2754.5,1.21541387]
[1643767897204,0.33158947,2755.1,2754.5,2.12291597]
[1643767899612,0.33158947,2755.1,2754.6,0.90744]
[1643767901460,0.33158947,2755.1,2754.6,1.7937139]
[1643767902865,0.33158947,2755.1,2754.6,1.43144]
[1643767903261,1.53467724,2755.0,2754.6,0.524]
[1643767903500,1.53467724,2755.0,2754.5,2.12291597]
[1643767905514,1.53467724,2755.0,2754.5,1.2075021]
[1643767905711,0.1814,2755.3,2754.6,0.90745]
[1643767906011,0.1814,2755.3,2754.8,0.9074149]
[1643767906012,1.53463793,2755.2,2754.8,0.9074149]
[1643767906213,1.53463793,2755.2,2754.8,1.2074149]
[1643767906413,1.53463793,2755.1,2754.8,1.4314149]
[1643767906613,1.53463793,2755.0,2754.8,0.524]
[1643767906812,1.53463793,2755.1,2754.8,0.524]
[1643767907014,1.53466766,2755.0,2754.8,0.524]
[1643767907248,0.35365378,2755.2,2754.8,0.524]
[1643767907448,1.53463676,2755.1,2754.8,0.524]
[1643767907950,1.53380477,2755.1,2754.8,0.524]
[1643767909554,1.53380477,2755.1,2754.5,1.9961821]
[1643767912804,1.53380477,2755.1,2754.5,1.8147821]
[1643767915152,1.53380477,2755.1,2754.7,0.90741]
[1643767916350,1.53380477,2755.1,2754.7,1.20741]
[1643767916551,1.0549888,2755.4,2754.9,0.90737]
[1643767916755,1.0549888,2755.4,2755.0,0.78119156]
[1643767917157,1.0549888,2755.4,2755.0,1.30519156]
[1643767918703,1.0549888,2755.4,2755.0,1.73272104]
[1643767918910,1.0549888,2755.4,2755.0,1.30519156]
[1643767919111,1.0549888,2755.4,2755.2,0.2]
[1643767919509,1.0549888,2755.4,2755.0,0.524]
[1643767919912,1.0549888,2755.4,2755.0,0.88858881]
[1643767920115,1.0549888,2755.4,2755.1,0.9073]
[1643767920312,1.0549888,2755.4,2755.2,1.47499095]
[1643767920511,1.0549888,2755.4,2755.2,1.42499095]
[1643767920712,1.0549888,2755.4,2755.2,1.72499095]
[1643767922113,1.0549888,2755.4,2755.2,3.82747028]
[1643767922355,1.0549888,2755.4,2755.3,2.06514657]
[1643767922553,1.0549888,2755.4,2755.3,0.524]
[1643767922962,1.0549888,2755.4,2755.1,0.1814]
[1643767923159,1.8073888,2755.4,2755.1,0.1814]
[1643767923959,1.8073888,2755.4,2754.7,0.524]
[1643767924158,3.90932111,2755.4,2754.6,0.1814]
[1643767924359,1.9887888,2755.4,2754.5,1.9962378]
[1643767924559,3.91261468,2755.4,2754.5,1.9962378]
[1643767925160,1.9887888,2755.4,2754.5,1.9962378]
[1643767925762,0.41721447,2754.8,2754.6,0.3]
[1643767926408,0.41721447,2754.8,2754.5,1.9962378]
[1643767926605,0.41721447,2754.8,2754.5,1.8148378]
[1643767927007,0.41721447,2754.8,2754.6,0.3]
[1643767927206,0.41721447,2754.8,2754.5,1.8148378]
[1643767927612,3.85661781,2755.4,2754.5,1.8148378]
[1643767927814,1.53463968,2755.3,2754.6,0.3]
[1643767928010,2.08976501,2755.2,2754.6,0.3]
[1643767928212,1.53463968,2755.1,2754.6,0.3]
[1643767929311,0.35507168,2754.7,2754.6,0.3]
[1643767929962,1.88971578,2754.7,2754.6,0.3]
[1643767931566,1.5346441,2754.7,2754.6,0.3]
[1643767931767,0.1814,2755.3,2754.6,0.3]
[1643767931967,2.39839057,2755.3,2754.6,0.3]
[1643767932167,3.53570084,2755.2,2754.6,0.3]
[1643767932368,1.53470681,2755.1,2754.6,0.3]
[1643767932969,0.42516236,2754.8,2754.6,0.3]
[1643767933267,1.53470681,2754.7,2754.6,0.3]
[1643767933709,0.1814,2755.3,2754.6,0.3]
[1643767933913,1.53461472,2755.2,2754.6,0.3]
[1643767934606,0.38863498,2754.9,2754.6,0.3]
[1643767934816,1.53461472,2754.8,2754.6,0.3]
[1643767935011,0.1814,2755.3,2754.6,0.3]
[1643767935212,1.534535,2755.2,2754.6,0.3]
[1643767936012,0.39893942,2755.0,2754.6,0.3]
[1643767938655,1.91440772,2754.9,2754.5,1.8148378]
[1643767938857,1.91440772,2754.9,2754.4,0.1814]
[1643767939063,3.26020772,2754.9,2754.1,1.8152293]
[1643767939457,3.94249148,2754.9,2754.1,1.8152293]
[1643767940160,3.94249148,2754.9,2754.1,2.85574662]
[1643767940360,3.07880772,2754.9,2754.1,2.85574662]
[1643767941014,2.77880772,2754.9,2754.1,2.85574662]
[1643767941218,0.33633396,2754.9,2754.2,0.9076393]
[1643767941416,0.1814,2755.0,2754.3,0.524]
[1643767941621,2.91607256,2755.4,2754.4,0.1814]
[1643767941622,0.1814,2755.3,2754.4,0.1814]
[1643767941813,0.1814,2755.3,2754.7,0.85456044]
[1643767942012,0.1814,2755.3,2754.7,1.15456044]
[1643767942412,0.5368578,2755.3,2754.7,1.47256971]
[1643767942614,0.1814,2755.3,2754.8,0.9074653]
[1643767942821,1.0549888,2755.4,2754.9,0.524]
[1643767943018,1.0549888,2755.4,2755.0,0.1814]
[1643767943216,1.0549888,2755.4,2755.0,1.0054]
[1643767944017,1.0549888,2755.4,2755.2,2.11086234]
[1643767944224,1.0549888,2755.4,2755.3,0.90724]
[1643767944616,1.0549888,2755.4,2755.3,1.90724]
[1643767947667,1.0549888,2755.4,2755.3,0.90724]
[1643767947870,1.0549888,2755.4,2755.2,0.1814]
[1643767948069,1.0549888,2755.4,2755.1,1.8144685]
[1643767948907,1.0549888,2755.4,2755.3,0.39161382]
[1643767949912,1.0549888,2755.4,2755.3,1.29887382]
[1643767950112,3.8532,2756.3,2755.5,4.65]
[1643767950113,0.68228376,2756.3,2755.5,4.65]
[1643767950315,5.35417454,2756.5,2755.8,0.01255178]
[1643767950316,0.1256,2756.4,2755.8,0.01255178]
[1643767950513,0.90800842,2756.8,2755.8,0.01255178]
[1643767950514,0.1255,2756.7,2755.9,0.524]
[1643767950708,0.1255,2756.7,2755.9,0.824]
[1643767950908,0.1255,2756.7,2756.1,0.9069]
[1643767951109,0.68228376,2756.9,2756.3,0.9069]
[1643767951110,0.1255,2756.8,2756.3,0.9069]
[1643767951314,0.1255,2756.8,2756.3,1.8137919]
[1643767951509,0.1255,2757.0,2756.3,2.1137919]
[1643767951713,0.1255,2757.2,2756.4,0.524]
[1643767951914,0.1255,2757.5,2756.5,6.2637]
[1643767952120,0.68228376,2757.7,2756.7,0.90667]
[1643767952121,0.1812,2757.6,2756.7,0.90667]
[1643767952375,0.1812,2757.6,2757.0,0.88096014]
[1643767952571,0.1812,2757.7,2756.9,1.33473913]
[1643767952768,0.1812,2757.7,2756.9,0.72808503]
[1643767952970,0.86348376,2757.9,2756.9,0.72808503]
[1643767953171,2.0,2757.8,2756.9,0.72808503]
[1643767953374,0.62198438,2757.7,2756.9,0.72808503]
[1643767953568,0.62198438,2757.7,2756.9,0.3]
[1643767953770,1.52354653,2757.7,2756.8,0.824]
[1643767953969,1.52354653,2757.7,2757.0,1.8131706]
[1643767954170,0.62198438,2757.7,2757.0,2.1131706]
[1643767954370,0.62198438,2757.7,2757.0,3.0198306]
[1643767956019,3.69960716,2757.6,2756.8,0.1775971]
[1643767956224,0.39589905,2756.9,2756.4,0.1812]
[1643767956524,2.07802999,2756.8,2756.1,6.3164]
[1643767956720,1.91392501,2756.8,2756.2,1.1812]
[1643767957323,1.91297709,2756.8,2756.2,1.4812]
[1643767957518,1.91549563,2756.8,2756.2,1.4812]
[1643767957919,0.1812,2756.8,2756.2,1.4812]
[1643767958319,0.1812,2756.8,2756.2,2.32522703]
[1643767959019,0.39589905,2756.9,2756.1,6.3164]
[1643767959220,0.57709905,2756.9,2756.1,6.3164]
[1643767959420,0.1812,2756.9,2756.1,7.2233542]
[1643767959622,0.1812,2757.3,2756.2,1.43087]
[1643767959873,1.99093565,2757.6,2756.2,1.43087]
[1643767959874,1.53365303,2757.2,2756.2,1.61207]
[1643767960069,0.1812,2757.1,2756.8,0.8459913]
[1643767960268,0.1812,2757.5,2756.8,1.1459913]
[1643767960464,1.53358879,2757.4,2756.8,1.1459913]
[1643767960666,1.53358879,2757.3,2756.8,1.1459913]
[1643767960866,2.11075064,2757.8,2756.8,1.1459913]
[1643767961065,2.11075064,2757.8,2756.9,6.2098]
[1643767961066,1.53358932,2757.7,2756.9,6.2098]
[1643767961266,0.4812,2757.6,2756.9,6.5098]
[1643767961666,0.3,2757.6,2756.9,6.5098]
[1643767961868,0.43808253,2757.5,2756.9,6.5098]
[1643767962473,0.1812,2757.8,2756.9,6.5098]
[1643767962675,0.1812,2757.8,2756.9,7.0338]
[1643767962869,0.1812,2757.8,2757.0,0.9066504]
[1643767963069,0.1812,2758.0,2757.0,0.9066504]
[1643767963268,1.83344747,2757.9,2757.0,0.9066504]
[1643767963511,0.41521539,2757.6,2757.0,0.9066504]
[1643767963917,0.1812,2757.8,2757.0,0.9066504]
[1643767964212,1.5334192,2757.7,2757.0,1.8132804]
[1643767964414,0.1812,2757.9,2756.9,6.7338]
[1643767964415,1.92065009,2757.6,2756.9,6.7338]
[1643767964614,1.53361942,2757.5,2756.9,6.2098]
[1643767964823,3.67240268,2757.4,2756.9,6.2098]
[1643767965026,0.1812,2757.6,2756.9,6.2098]
[1643767965217,0.1812,2757.6,2756.6,0.1812]
[1643767965417,0.1812,2757.6,2756.8,0.68787479]
[1643767965616,0.1812,2757.6,2756.8,0.35183323]
[1643767965617,0.40139667,2757.4,2756.8,0.35183323]
[1643767965916,0.40139667,2757.4,2756.6,6.4382]
[1643767966119,0.40139667,2757.4,2756.7,0.9067863]
[1643767967860,2.93125,2757.3,2756.6,0.1812]
[1643767968061,2.79002725,2757.3,2756.6,0.1812]
[1643767968267,0.1812,2757.3,2756.6,0.1812]
[1643767968661,1.0,2757.4,2756.6,0.1812]
[1643767968861,1.7150377,2757.3,2756.6,0.1812]
[1643767969062,1.5338377,2757.2,2756.6,0.1812]
[1643767969362,1.71257,2757.7,2756.7,2.65]
[1643767969565,3.75273342,2758.6,2757.6,0.01268188]
[1643767969763,1.53331372,2758.5,2757.6,0.01268188]
[1643767970169,1.1049888,2758.7,2757.7,0.99999999]
[1643767970366,1.53313466,2758.6,2757.7,0.99999999]
[1643767970762,1.53313466,2758.6,2757.7,0.32606251]
[1643767970763,0.36578131,2758.3,2757.7,0.32606251]
[1643767971014,0.36578131,2758.3,2757.7,1.23333227]
[1643767971218,0.36578131,2758.3,2757.6,1.91919187]
[1643767971417,0.36578131,2758.3,2757.6,0.90651]
[1643767971613,0.36578131,2758.3,2757.7,0.99999999]
[1643767972215,0.36578131,2758.3,2757.7,7.42719999]
[1643767972616,0.36578131,2758.3,2757.7,6.4272]
[1643767973241,0.31578131,2758.3,2757.7,6.4272]
[1643767973819,2.05172413,2758.6,2757.7,6.4272]
[1643767974021,1.4049888,2758.7,2757.7,6.4272]
[1643767974022,1.53320004,2758.5,2757.7,6.4272]
[1643767974221,1.53320004,2758.4,2757.8,0.99999999]
[1643767974419,1.4049888,2758.7,2757.8,0.99999999]
[1643767974620,1.53317614,2758.6,2757.7,6.7272]
[1643767974882,0.4134965,2758.2,2757.7,6.7272]
[1643767975283,0.4134965,2758.2,2757.7,6.4272]
[1643767975487,1.4049888,2758.7,2757.7,6.4272]
[1643767975684,1.53315687,2758.6,2757.7,6.4272]
[1643767976089,0.42915275,2759.2,2758.2,0.0124011]
[1643767976291,0.94706858,2760.3,2759.1,1.01272524]
[1643767976491,3.0979,2760.8,2759.9,0.01254473]
[1643767976492,0.90527215,2760.5,2759.9,0.01254473]
[1643767976689,0.04035806,2760.0,2759.3,0.1811]
[1643767976893,0.04035806,2760.0,2759.3,0.7051]
[1643767977090,0.04035806,2760.0,2759.4,0.90304259]
[1643767977289,0.04035806,2760.0,2759.3,0.7051]
[1643767977488,0.04035806,2760.0,2759.3,1.70509999]
[1643767977489,0.38008166,2759.9,2759.3,1.70509999]
[1643767977698,0.04035806,2760.0,2759.3,1.70509999]
[1643767977699,0.04035806,2760.0,2759.8,0.99999999]
[1643767977889,0.04035806,2760.0,2759.9,6.824]
[1643767978095,0.04035806,2760.0,2759.9,0.524]
[1643767978291,0.04035806,2760.0,2759.9,1.34551181]
[1643767978510,0.47828643,2760.0,2759.9,1.34551181]
[1643767978713,0.47828643,2760.0,2759.9,2.34551181]
[1643767978914,0.04035806,2760.0,2759.9,2.25118181]
[1643767979114,0.04035806,2760.0,2759.9,3.25118181]
[1643767979315,0.33927107,2760.9,2760.1,4.95]
[1643767979518,0.33927107,2760.9,2760.4,0.99999999]
[1643767979717,0.33927107,2760.9,2760.5,0.524]
[1643767979916,0.36108446,2760.8,2760.6,0.524]
[1643767980117,0.54218446,2760.8,2760.6,0.524]
[1643767981021,21.23,2760.7,2760.1,0.524]
[1643767981217,1.1811,2760.6,2759.5,0.1811]
[1643767981422,1.1811,2760.6,2759.6,0.524]
[1643767981423,0.1811,2760.6,2759.6,0.524]
[1643767981618,0.31108446,2760.8,2759.6,0.524]
[1643767981619,0.1811,2760.7,2759.7,0.1811]
[1643767981818,0.1811,2760.7,2759.7,0.7051]
[1643767982019,0.1811,2760.7,2759.7,0.524]
[1643767982568,0.1811,2760.8,2759.9,0.90059481]
[1643767982867,0.37299649,2760.1,2759.9,2.4245948]
[1643767983472,0.1811,2760.8,2759.9,2.4245948]
[1643767983668,0.33927107,2760.9,2759.9,2.4245948]
[1643767984070,0.1811,2760.8,2759.9,2.4245948]
[1643767984272,0.1811,2760.8,2760.0,0.99999999]
[1643767985274,0.1811,2760.8,2760.1,0.524]
[1643767985477,0.35366446,2760.3,2760.1,1.4296539]
[1643767985675,0.1811,2760.8,2760.1,1.4296539]
[1643767986129,0.1811,2760.8,2760.1,2.42965389]
[1643767986722,0.44963636,2760.3,2760.1,2.42965389]
[1643767986924,0.44963636,2760.3,2760.2,0.1811]
[1643767987328,0.33927107,2760.9,2760.2,2.21204589]
[1643767987531,0.33927107,2760.9,2760.5,0.99999999]
[1643767987727,0.33927107,2760.9,2760.6,0.524]
[1643767988329,0.75748686,2760.9,2760.6,1.21505648]
[1643767988928,0.75748686,2760.9,2760.6,0.524]
[1643767989760,0.33927107,2760.9,2760.6,0.524]
[1643767990767,0.39347323,2760.8,2760.6,0.524]
[1643767990969,0.39347323,2760.8,2760.6,1.5]
[1643767991373,0.57457323,2760.8,2760.6,1.5]
[1643767991768,0.39347323,2760.8,2760.6,1.5]
[1643767995517,0.33927107,2760.9,2760.6,1.5]
[1643767996625,0.76603575,2760.9,2760.6,0.86588492]
[1643767996817,0.71603575,2760.9,2760.5,0.86588492]
[1643767997260,1.53203795,2760.8,2760.4,1.4811]
[1643767997463,1.53203795,2760.8,2760.3,2.52562198]
[1643767997662,1.53203795,2760.8,2760.3,2.34452198]
[1643767998459,1.83203795,2760.8,2760.3,2.34452198]
[1643767998664,1.53203795,2760.7,2760.3,2.34452198]
[1643767999066,0.71603575,2760.9,2760.3,2.34452198]
[1643767999271,1.53208814,2760.8,2760.3,2.34452198]
[1643767999866,1.53208814,2760.8,2760.3,0.524]
[1643768001921,0.37510347,2760.4,2760.3,0.524]
[1643768002120,0.37510347,2760.4,2760.1,0.1811]
[1643768002318,0.37510347,2760.4,2759.9,3.9721]
[1643768002319,1.53222803,2760.3,2759.9,3.9721]
[1643768002516,1.53222803,2760.3,2759.9,0.1811]
[1643768002719,1.53222803,2760.3,2759.7,6.8285]
[1643768002917,1.53222803,2760.3,2759.7,6.5285]
[1643768003118,1.53222803,2760.3,2759.7,7.40479467]
[1643768004119,0.37510347,2760.4,2759.7,7.40479467]
[1643768004319,1.53224274,2760.3,2759.7,7.40479467]
[1643768004525,0.37510347,2760.4,2759.7,7.40479467]
[1643768004762,0.37510347,2760.4,2759.8,0.86588492]
[1643768004970,0.37510347,2760.4,2759.7,7.22369467]
[1643768005566,1.53224275,2760.3,2759.7,7.22369467]
[1643768006170,0.37510347,2760.4,2759.7,7.22369467]
[1643768006469,1.53223154,2760.3,2759.7,6.3474]
[1643768006667,21.81927107,2760.9,2759.7,6.3474]
[1643768006866,1.5322714,2760.2,2759.7,6.3474]
[1643768007072,0.35570515,2760.2,2759.7,6.3474]
[1643768007471,0.35570515,2760.2,2759.9,0.92706184]
[1643768008179,0.14689758,2760.0,2758.8,1.7778782]
[1643768008376,0.14689758,2760.0,2758.4,3.6222463]
[1643768008377,0.01240251,2759.2,2758.1,6.84058492]
[1643768008624,0.1812,2759.1,2758.1,5.9747]
[1643768008818,0.18721625,2759.1,2758.1,5.9747]
[1643768009022,2.13721625,2759.1,2758.2,0.86588492]
[1643768009221,0.35186032,2758.6,2758.3,0.86588492]
[1643768009424,3.06845935,2759.1,2758.3,0.86588492]
[1643768009630,1.06845935,2759.1,2758.3,0.86588492]
[1643768009825,1.53285103,2759.0,2758.3,0.86588492]
[1643768010125,23.23,2758.9,2758.0,0.04398]
[1643768010327,24.054,2758.9,2757.7,0.1812]
[1643768010524,24.054,2758.9,2757.7,0.79708492]
[1643768010722,1.53295365,2758.8,2757.7,0.97828492]
[1643768010924,2.31295534,2758.7,2757.7,0.97828492]
[1643768011124,0.32819551,2758.6,2758.0,1.15420804]
[1643768011526,0.32819551,2758.6,2758.0,0.35712312]
[1643768011925,0.32819551,2758.6,2757.8,1.91874163]
[1643768012788,0.32819551,2758.6,2757.8,1.86874163]
[1643768012990,0.32819551,2758.6,2758.0,0.38620006]
[1643768013190,0.1812,2758.8,2758.0,0.38620006]
[1643768013391,0.1812,2758.8,2758.1,0.79708492]
[1643768014195,0.1812,2758.8,2758.7,0.79708492]
[1643768014498,0.1812,2759.1,2758.7,0.79708492]
[1643768014699,0.524,2759.9,2758.5,0.79708492]
[1643768014700,0.1812,2759.8,2758.5,0.79708492]
[1643768014894,2.73315886,2759.7,2758.1,1.4377]
[1643768015097,5.19701166,2759.6,2758.2,0.79708492]
[1643768015296,0.40301021,2759.0,2758.0,0.68620006]
[1643768015495,0.1812,2758.9,2758.0,0.68620006]
[1643768015696,2.01229183,2758.9,2758.1,1.6391116]
[1643768015895,1.53281541,2758.8,2758.1,0.79708492]
[1643768016112,1.53281541,2758.8,2758.0,0.3]
[1643768016311,1.96524271,2758.7,2757.9,1.27828492]
[1643768016516,1.96524271,2758.7,2757.9,0.97828492]
[1643768016713,1.96524271,2758.7,2757.9,0.1812]
[1643768017113,0.33919874,2758.4,2757.9,0.1812]
[1643768017319,0.1812,2758.6,2757.8,1.5127]
[1643768017715,1.53298112,2758.5,2757.8,1.5127]
[1643768017914,0.1812,2758.6,2757.8,1.5127]
[1643768018718,1.53297592,2758.5,2757.8,1.5127]
[1643768018917,3.4992811,2758.5,2757.7,1.925667]
[1643768019117,1.96630518,2758.5,2757.7,1.925667]
[1643768019769,0.51277685,2758.6,2757.7,1.925667]
[1643768019770,2.45331222,2758.6,2757.7,1.925667]